fUSD/lending_fUSD_20251130
["ID","MTS","AMOUNT","RATE_DAILY","PERIOD"]
[395159061,1764491439246,-433.0,0.00014982,2]
[395159062,1764491439256,-1358.9209654,0.00015,2]
[395159063,1764491439266,-272060.15053489,0.00015,4]
[395159064,1764491439276,-12037.00064594,0.00015,2]
[395159065,1764491439286,-7423.08563039,0.00015028,2]
[395159066,1764491439296,-4265.73943391,0.00015028,2]
[395159067,1764491439306,-79250.17,0.00015056,2]
[395159068,1764491439317,-594.58915837,0.00015099,2]
[395159069,1764491439330,-250.0,0.00015216,2]
[395159070,1764491439340,-587.0,0.00015254,2]
[395159071,1764491439350,-587.0,0.00015254,2]
[395159072,1764491439360,-705.05,0.000153,2]
[395159073,1764491439370,-2351.0,0.00015337,2]
[395159074,1764491439379,-2751.0,0.00015495,2]
[395159075,1764491439388,-7423.08563039,0.00015497,2]
[395159076,1764491439397,-4265.73943391,0.00015497,2]
[395159077,1764491439407,-5786.3283329,0.00015584,2]
[395159078,1764491439416,-594.58915837,0.00015699,2]
[395159079,1764491439426,-1599.999999,0.000159,2]
[395159080,1764491439435,-5885.66279061,0.000159,2]
[395159081,1764491439444,-2482.12,0.00015957,2]
[395159082,1764491439453,-7423.08563039,0.00015966,2]
[395159083,1764491439462,-4265.73943391,0.00015966,2]
[395159084,1764491439472,-500.0,0.00015973,2]
[395159085,1764491439486,-500.0,0.00015973,2]
[395159086,1764491439495,-500.0,0.00015973,2]
[395159087,1764491439505,-500.0,0.00015973,2]
[395159088,1764491439514,-161.07388452,0.00015973,2]
[395159089,1764491439524,-500.0,0.00015973,2]
[395159090,1764491439534,-500.0,0.00015973,2]
[395159091,1764491439543,-500.0,0.00015973,2]
[395159092,1764491439553,-500.21383285,0.00015973,2]
[395159093,1764491439564,-215.69681959,0.00015973,2]
[395159094,1764491439575,-500.0,0.00015973,2]
[395159095,1764491439585,-500.0,0.00015973,2]
[395159096,1764491439595,-316.03350375,0.00015973,2]
[395159097,1764491439605,-500.0,0.00015973,2]
[395159098,1764491439613,-500.0,0.00015973,2]
[395159099,1764491439622,-622.74851177,0.00015973,2]
[395159100,1764491439631,-500.65013658,0.00015973,2]
[395159101,1764491439641,-160.07187961,0.00015973,2]
[395159102,1764491439650,-500.0,0.00015973,2]
[395159103,1764491439659,-500.0,0.00015973,2]
[395159104,1764491439668,-500.0,0.00015973,2]
[395159105,1764491439677,-246.57118594,0.0001599,2]
[395159106,1764491439687,-151.0,0.00015997,2]
[395159107,1764491439696,-319.26681909,0.00016,2]
[395159108,1764491439705,-23666.07387272,0.00016,2]
[395159109,1764491439715,-80242.06015155,0.00016,2]
[395159110,1764491439724,-225175.57219551,0.00016,4]
[395159111,1764491439733,-414.77797921,0.00016152,2]
[395159112,1764491439744,-5000.00745737,0.000162,5]
[395159113,1764491439753,-1291.1043676,0.0001623,2]
[395159114,1764491439762,-736.0,0.00016275,2]
[395159115,1764491439771,-594.58915837,0.000163,2]
[395159116,1764491439781,-1667.0,0.00016323,2]
[395159117,1764491439791,-200.0,0.0001634,2]
[395159118,1764491439803,-1667.0,0.00016388,2]
[395159119,1764491439812,-579.42029305,0.00016392,2]
[395159120,1764491439821,-500.0,0.00016392,2]
[395159121,1764491439832,-8000.0,0.00016392,2]
[395159122,1764491439841,-257.91778498,0.00016392,2]
[395159123,1764491439853,-500.0,0.00016392,2]
[395159124,1764491439863,-8000.0,0.00016392,2]
[395159125,1764491439873,-500.0,0.00016392,2]
[395159126,1764491439882,-8000.0,0.00016392,2]
[395159127,1764491439892,-8000.0,0.00016392,2]
[395159128,1764491439902,-500.0,0.00016392,2]
[395159129,1764491439912,-7472.61466531,0.00016392,2]
[395159130,1764491439922,-500.0,0.00016392,2]
[395159131,1764491439932,-533.88981491,0.00016392,2]
[395159132,1764491439941,-500.0,0.00016392,2]
[395159133,1764491439950,-500.0,0.00016392,2]
[395159134,1764491439959,-500.0,0.00016392,2]
[395159135,1764491439968,-500.0,0.00016392,2]
[395159136,1764491439978,-500.0,0.00016392,2]
[395159137,1764491439988,-500.0,0.00016392,2]
[395159138,1764491439998,-500.0,0.00016392,2]
[395159139,1764491440007,-500.0,0.00016392,2]
[395159140,1764491440017,-151.0,0.00016392,2]
[395159141,1764491440026,-151.0,0.00016392,2]
[395159142,1764491440036,-151.0,0.00016392,2]
[395159143,1764491440045,-557.5788265,0.00016392,2]
[395159144,1764491440054,-151.0,0.00016392,2]
[395159145,1764491440063,-151.0,0.00016392,2]
[395159146,1764491440072,-151.0,0.00016392,2]
[395159147,1764491440083,-578.20924308,0.00016392,2]
[395159148,1764491440094,-151.0,0.00016392,2]
[395159149,1764491440103,-151.0,0.00016392,2]
[395159150,1764491440112,-151.0,0.00016392,2]
[395159151,1764491440122,-151.0,0.00016392,2]
[395159152,1764491440132,-151.0,0.00016392,2]
[395159154,1764491440141,-1000.0,0.00016392,2]
[395159156,1764491440150,-151.0,0.00016392,2]
[395159157,1764491440159,-1000.0,0.00016392,2]
[395159158,1764491440168,-151.0,0.00016392,2]
[395159159,1764491440178,-1000.0,0.00016392,2]
[395159160,1764491440187,-1000.0,0.00016392,2]
[395159161,1764491440196,-500.0,0.00016392,2]
[395159162,1764491440205,-1000.0,0.00016392,2]
[395159163,1764491440214,-500.0,0.00016392,2]
[395159164,1764491440223,-1000.0,0.00016392,2]
[395159165,1764491440232,-500.0,0.00016392,2]
[395159166,1764491440241,-1000.0,0.00016392,2]
[395159167,1764491440250,-500.0,0.00016392,2]
[395159168,1764491440260,-1000.0,0.00016392,2]
[395159169,1764491440269,-500.0,0.00016392,2]
[395159170,1764491440278,-500.0,0.00016392,2]
[395159171,1764491440287,-1000.0,0.00016392,2]
[395159172,1764491440296,-163.27944846,0.00016392,2]
[395159173,1764491440305,-500.0,0.00016392,2]
[395159174,1764491440315,-1000.0,0.00016392,2]
[395159175,1764491440324,-151.0,0.00016392,2]
[395159176,1764491440334,-500.0,0.00016392,2]
[395159177,1764491440343,-1000.0,0.00016392,2]
[395159178,1764491440353,-500.0,0.00016392,2]
[395159179,1764491440362,-1000.0,0.00016392,2]
[395159180,1764491440372,-1000.0,0.00016392,2]
[395159181,1764491440382,-500.0,0.00016392,2]
[395159182,1764491440392,-500.0,0.00016392,2]
[395159183,1764491440401,-500.0,0.00016392,2]
[395159184,1764491440410,-500.0,0.00016392,2]
[395159185,1764491440422,-250.0,0.00016392,2]
[395159186,1764491440432,-250.0,0.00016392,2]
[395159187,1764491440441,-300.0,0.00016392,2]
[395159188,1764491440451,-250.0,0.00016392,2]
[395159189,1764491440460,-1000.0,0.00016392,2]
[395159190,1764491440469,-250.0,0.00016392,2]
[395159191,1764491440479,-250.0,0.00016392,2]
[395159192,1764491440490,-1000.0,0.00016392,2]
[395159193,1764491440499,-250.0,0.00016392,2]
[395159194,1764491440508,-1000.0,0.00016392,2]
[395159195,1764491440517,-250.0,0.00016392,2]
[395159196,1764491440528,-1000.0,0.00016392,2]
[395159197,1764491440537,-250.0,0.00016392,2]
[395159198,1764491440546,-1000.0,0.00016392,2]
[395159199,1764491440555,-250.0,0.00016392,2]
[395159200,1764491440566,-1000.0,0.00016392,2]
[395159201,1764491440576,-250.0,0.00016392,2]
[395159202,1764491440585,-1000.0,0.00016392,2]
[395159203,1764491440594,-250.0,0.00016392,2]
[395159204,1764491440603,-1000.0,0.00016392,2]
[395159205,1764491440612,-250.0,0.00016392,2]
[395159206,1764491440621,-1000.0,0.00016392,2]
[395159207,1764491440631,-250.0,0.00016392,2]
[395159208,1764491440639,-1000.0,0.00016392,2]
[395159209,1764491440649,-1000.0,0.00016392,2]
[395159210,1764491440658,-1000.0,0.00016392,2]
[395159211,1764491440668,-1000.0,0.00016392,2]
[395159212,1764491440677,-500.0,0.00016392,2]
[395159213,1764491440687,-500.0,0.00016392,2]
[395159214,1764491440696,-500.0,0.00016392,2]
[395159215,1764491440705,-500.0,0.00016392,2]
[395159216,1764491440715,-500.0,0.00016392,2]
[395159217,1764491440723,-500.0,0.00016392,2]
[395159218,1764491440732,-500.0,0.00016392,2]
[395159219,1764491440741,-358.98149521,0.00016392,2]
[395159220,1764491440750,-1000.0,0.00016392,2]
[395159221,1764491440759,-7423.08563039,0.00016435,2]
[395159223,1764491440769,-4265.73943391,0.00016435,2]
[395159225,1764491440778,-772.98303428,0.00016438,2]
[395159226,1764491440788,-6608.79,0.00016438,2]
[395159227,1764491440797,-1667.0,0.00016485,2]
[395159228,1764491440806,-1667.0,0.00016508,2]
[395159229,1764491440816,-502.84705647,0.00016521,2]
[395159230,1764491440825,-1000.0,0.00016521,2]
[395159231,1764491440835,-1000.0,0.00016521,2]
[395159232,1764491440844,-1000.0,0.00016521,2]
[395159233,1764491440856,-995.14510969,0.00016521,2]
[395159234,1764491440865,-505.74952757,0.00016521,2]
[395159235,1764491440874,-1000.0,0.00016521,2]
[395159236,1764491440884,-1000.0,0.00016521,2]
[395159237,1764491440896,-696.8967906,0.00016521,2]
[395159238,1764491440906,-1018.43163791,0.00016521,2]
[395159239,1764491440916,-1000.0,0.00016521,2]
[395159240,1764491440926,-512.61581703,0.00016521,2]
[395159241,1764491440936,-957.90842426,0.00016521,2]
[395159242,1764491440946,-1000.0,0.00016521,2]
[395159243,1764491440956,-1000.0,0.00016521,2]
[395159244,1764491440965,-1667.0,0.00016602,2]
[395159245,1764491440975,-1667.0,0.00016617,2]
[395159246,1764491440984,-1667.0,0.00016658,2]
[395159247,1764491440994,-1667.0,0.00016666,2]
[395159248,1764491441003,-823.0,0.00016734,2]
[395159249,1764491441012,-823.0,0.00016734,2]
[395159250,1764491441027,-1667.0,0.00016824,2]
[395159251,1764491441036,-1667.0,0.00016857,2]
[395159252,1764491441045,-3292.0,0.00016871,2]
[395159253,1764491441054,-1667.0,0.00016873,2]
[395159254,1764491441064,-250.0,0.00016882,2]
[395159255,1764491441073,-1234.1868656,0.000169,2]
[395159256,1764491441083,-1644.74030778,0.000169,2]
[395159257,1764491441092,-594.58915837,0.000169,2]
[395159258,1764491441101,-201.41866534,0.00016904,2]
[395159259,1764491441110,-7423.08563039,0.00016904,2]
[395159260,1764491441120,-4265.73943391,0.00016904,2]
[395159261,1764491441129,-245.44,0.00016936,2]
[395159262,1764491441138,-553.64373807,0.0001694,2]
[395159263,1764491441147,-1000.0,0.0001694,2]
[395159264,1764491441156,-500.0,0.00016959,2]
[395159265,1764491441165,-512.90563522,0.00016959,2]
[395159266,1764491441175,-500.0,0.00016973,2]
[395159267,1764491441184,-500.0,0.00016973,2]
[395159268,1764491441193,-500.0,0.00016973,2]
[395159269,1764491441202,-500.0,0.00016973,2]
[395159270,1764491441211,-500.0,0.00016973,2]
[395159271,1764491441221,-500.75968259,0.00016973,2]
[395159272,1764491441230,-500.0,0.00016973,2]
[395159273,1764491441240,-500.0,0.00016973,2]
[395159274,1764491441249,-500.0,0.00016973,2]
[395159275,1764491441262,-500.0,0.00016973,2]
[395159276,1764491441271,-500.0,0.00016973,2]
[395159277,1764491441280,-232.40806133,0.00016973,2]
[395159278,1764491441289,-339.26563356,0.00016973,2]
[395159279,1764491441298,-166.09514249,0.00016973,2]
[395159280,1764491441307,-162.090508,0.00016973,2]
[395159281,1764491441316,-366.95471126,0.00016973,2]
[395159282,1764491441325,-502.42313954,0.00016973,2]
[395159283,1764491441334,-507.2295556,0.00016973,2]
[395159284,1764491441343,-500.0,0.00016973,2]
[395159285,1764491441352,-500.0,0.00016973,2]
[395159286,1764491441361,-500.0,0.00016973,2]
[395159287,1764491441695,-500.0,0.00016973,2]
[395159288,1764491441705,-500.38978168,0.00016973,2]
[395159289,1764491441715,-415.54250471,0.00016973,2]
[395159290,1764491441725,-200.00768026,0.00016973,2]
[395159291,1764491441735,-500.0,0.00016973,2]
[395159292,1764491441744,-500.0,0.00016973,2]
[395159293,1764491441754,-215.92719524,0.00016973,2]
[395159294,1764491441763,-500.0,0.00016973,2]
[395159295,1764491441773,-500.0,0.00016973,2]
[395159296,1764491441782,-500.0,0.00016973,2]
[395159297,1764491441792,-500.0,0.00016973,2]
[395159298,1764491441802,-1667.0,0.00016984,2]
[395159299,1764491441811,-500.0,0.00016986,2]
[395159300,1764491441820,-150.0,0.00016986,2]
[395159301,1764491441830,-160.73087474,0.00016986,2]
[395159302,1764491441839,-284.96640709,0.00016986,2]
[395159303,1764491441848,-150.0,0.00016986,2]
[395159304,1764491441858,-500.0,0.00016986,2]
[395159305,1764491441867,-255.07516903,0.00016986,2]
[395159306,1764491441878,-500.0,0.00016986,2]
[395159307,1764491441887,-500.0,0.00016986,2]
[395159308,1764491441897,-150.0,0.00016986,2]
[395159309,1764491441906,-158.73149787,0.00016986,2]
[395159310,1764491441916,-500.0,0.00016986,2]
[395159311,1764491441926,-500.0,0.00016986,2]
[395159312,1764491441940,-729.0,0.00016986,2]
[395159313,1764491441950,-500.0,0.00016986,2]
[395159314,1764491441960,-500.0,0.00016986,2]
[395159315,1764491441969,-461.0,0.00016986,2]
[395159316,1764491441978,-156.75181041,0.00016986,2]
[395159317,1764491441988,-150.0,0.00016986,2]
[395159318,1764491441998,-500.0,0.00016986,2]
[395159319,1764491442008,-500.0,0.00016986,2]
[395159320,1764491442017,-1347.0,0.00016986,2]
[395159321,1764491442027,-246.57118594,0.0001699,2]
[395159322,1764491442041,-246.57118594,0.0001699,2]
[395159323,1764491442051,-151.0,0.00016997,2]
[395159324,1764491442061,-300.0,0.00016999,2]
[395159325,1764491442070,-300.0,0.00016999,2]
[395159326,1764491442080,-250.0,0.00017,2]
[395159327,1764491442089,-4397238.84955798,0.00017,2]
[395159328,1764491442199,500.0,0.00012675,2]
[395159329,1764491442547,-500.0,0.00015973,2]
[395159330,1764491442556,-500.0,0.00015973,2]
[395159331,1764491442567,-500.0,0.00016438,2]
[395159332,1764491442576,-500.0,0.00016438,2]
[395159333,1764491442585,-500.0,0.00016438,2]
[395159334,1764491442594,-214.2792213,0.00016438,2]
[395159335,1764491442604,-360.33354768,0.00016521,2]
[395159336,1764491442613,-500.0,0.00016986,2]
[395159337,1764491442622,-2638.91755946,0.00017,2]
[395159338,1764491442633,-5726.47382539,0.00017,2]
[395159339,1764491442644,-1269.9727187,0.00017,2]
[395159340,1764491442654,-9136.05965684,0.00017,2]
[395159342,1764491443331,-281.71884417,0.00016973,2]
[395159343,1764491443340,-819.14916133,0.00017,2]
[395159344,1764491443352,-253.25220002,0.00017,2]
[395159355,1764491446395,-151.85572149,0.00015973,2]
[395159356,1764491446409,-1020.55316516,0.0001666,2]
[395159357,1764491446419,-500.0,0.00016986,2]
[395159358,1764491446431,-150.0,0.00016986,2]
[395159359,1764491446441,-150.0,0.00016986,2]
[395159360,1764491446452,-72.98832127,0.00016986,2]
[395159364,1764491456351,500.0,0.00012675,2]
[395159365,1764491456397,500.0,0.00012675,2]
[395159366,1764491456442,500.0,0.00012675,2]
[395159367,1764491456486,500.0,0.00012675,2]
[395159368,1764491456534,500.0,0.00012675,2]
[395159369,1764491456578,500.0,0.00012675,2]
[395159370,1764491456621,500.0,0.00012675,2]
[395159371,1764491456664,500.0,0.00012675,2]
[395159372,1764491456707,500.0,0.00012675,2]
[395159373,1764491456751,500.0,0.00012675,2]
[395159374,1764491456794,500.0,0.00012675,2]
[395159375,1764491456836,500.0,0.00012675,2]
[395159376,1764491456873,500.0,0.00012675,2]
[395159377,1764491456916,500.0,0.00012675,2]
[395159378,1764491456959,500.0,0.00012675,2]
[395159379,1764491457002,500.0,0.00012675,2]
[395159380,1764491457044,500.0,0.00012675,2]
[395159381,1764491457091,500.0,0.00012675,2]
[395159382,1764491457141,500.0,0.00012675,2]
[395159383,1764491457179,500.0,0.00012675,2]
[395159384,1764491457220,0.01,0.00012675,2]
[395159385,1764491457247,499.99,0.00012675,2]
[395159386,1764491457289,500.0,0.00012675,2]
[395159387,1764491457689,500.0,0.00012675,2]
[395159388,1764491457732,500.0,0.00012675,2]
[395159389,1764491457775,500.0,0.00012675,2]
[395159390,1764491457818,500.0,0.00012675,2]
[395159391,1764491457860,500.0,0.00012675,2]
[395159392,1764491457915,500.0,0.00012675,2]
[395159393,1764491457957,500.0,0.00012675,2]
[395159394,1764491457999,500.0,0.00012675,2]
[395159395,1764491458045,500.0,0.00012675,2]
[395159396,1764491458092,500.0,0.00012675,2]
[395159397,1764491458130,500.0,0.00012675,2]
[395159398,1764491458176,500.0,0.00012675,2]
[395159399,1764491458228,500.0,0.00012675,2]
[395159400,1764491458268,500.0,0.00012675,2]
[395159401,1764491458312,500.0,0.00012675,2]
[395159402,1764491458350,500.0,0.00012675,2]
[395159403,1764491458397,500.0,0.00012675,2]
[395159404,1764491458438,500.0,0.00012675,2]
[395159405,1764491458476,0.02,0.00012675,2]
[395159406,1764491458508,499.98,0.00012675,2]
[395159407,1764491458548,500.0,0.00012675,2]
[395159408,1764491458586,500.0,0.00012675,2]
[395159409,1764491459936,500.0,0.00012675,2]
[395159410,1764491460010,500.0,0.00012675,2]
[395159411,1764491460054,500.0,0.00012675,2]
[395159412,1764491460100,500.0,0.00012675,2]
[395159413,1764491460139,500.0,0.00012675,2]
[395159414,1764491460182,500.0,0.00012675,2]
[395159415,1764491460221,500.0,0.00012675,2]
[395159416,1764491460260,500.0,0.00012675,2]
[395159418,1764491475798,235.2993,0.00012676,2]
[395159420,1764491499806,500.0,0.00012676,2]
[395159421,1764491506112,3264.4962,0.00012676,2]
[395159422,1764491507254,500.0,0.00012675,2]
[395159423,1764491507315,628.80011146,0.00012675,2]
[395159424,1764491507362,500.0,0.00012675,2]
[395159425,1764491507427,500.0,0.00012675,2]
[395159426,1764491507514,500.0,0.00012675,2]
[395159427,1764491507609,500.0,0.00012675,2]
[395159428,1764491507673,500.0,0.00012675,2]
[395159429,1764491507743,500.0,0.00012675,2]
[395159430,1764491507805,500.0,0.00012675,2]
[395159431,1764491507877,500.0,0.00012675,2]
[395159432,1764491507948,500.0,0.00012675,2]
[395159433,1764491507999,500.0,0.00012675,2]
[395159434,1764491508049,106.71368854,0.00012675,2]
[395159435,1764491508075,393.28631146,0.00012675,2]
[395159436,1764491508126,500.0,0.00012675,2]
[395159437,1764491508178,500.0,0.00012675,2]
[395159438,1764491508232,500.0,0.00012675,2]
[395159439,1764491508273,500.0,0.00012675,2]
[395159440,1764491508317,500.0,0.00012675,2]
[395159441,1764491508369,500.0,0.00012675,2]
[395159442,1764491508417,500.0,0.00012675,2]
[395159443,1764491508466,500.0,0.00012675,2]
[395159444,1764491508515,500.0,0.00012675,2]
[395159445,1764491508554,500.0,0.00012675,2]
[395159446,1764491508600,500.0,0.00012675,2]
[395159447,1764491508992,500.0,0.00012675,2]
[395159448,1764491509033,500.0,0.00012675,2]
[395159449,1764491509071,500.0,0.00012675,2]
[395159450,1764491509110,500.0,0.00012675,2]
[395159451,1764491509155,500.0,0.00012675,2]
[395159452,1764491509193,500.0,0.00012675,2]
[395159453,1764491509230,500.0,0.00012675,2]
[395159454,1764491509268,500.0,0.00012675,2]
[395159455,1764491509305,106.72368854,0.00012675,2]
[395159456,1764491509331,393.27631146,0.00012675,2]
[395159457,1764491509374,500.0,0.00012675,2]
[395159458,1764491509419,500.0,0.00012675,2]
[395159459,1764491509467,244.98932179,0.00012675,2]
[395159460,1764491509496,255.01067821,0.00012675,2]
[395159477,1764491536364,8351.72301033,0.00012676,2]
[395159478,1764491536392,10000.01,0.00012676,2]
[395159479,1764491536418,10000.01,0.00012676,2]
[395159480,1764491536444,10000.01,0.00012676,2]
[395159481,1764491536472,10000.01,0.00012676,2]
[395159482,1764491536498,10000.01,0.00012676,2]
[395159483,1764491536529,10000.01,0.00012676,2]
[395159484,1764491536555,10000.01,0.00012676,2]
[395159485,1764491536585,10000.01,0.00012676,2]
[395159486,1764491536611,10000.01,0.00012676,2]
[395159487,1764491556109,-943.04086243,0.00012676,2]
[395159488,1764491556132,-10000.01,0.00012676,2]
[395159489,1764491556280,-10000.01,0.00012676,2]
[395159490,1764491556435,-10000.01,0.00012676,2]
[395159491,1764491561098,-10000.01,0.00012676,2]
[395159492,1764491561258,-10000.01,0.00012676,2]
[395159493,1764491561401,-10000.01,0.00012676,2]
[395159494,1764491564979,-10000.01,0.00012676,2]
[395159495,1764491565100,-10000.01,0.00012676,2]
[395159496,1764491565231,-10000.01,0.00012676,2]
[395159497,1764491576940,-281.72570416,0.00012676,2]
[395159498,1764491578371,-254.7146204,0.00012676,2]
[395159499,1764491579875,-620.3746,0.00012676,2]
[395159500,1764491582143,-181.39330656,0.00012675,2]
[395159501,1764491586130,-118.60669344,0.00012675,2]
[395159502,1764491586152,-130.80610081,0.00012675,2]
[395159503,1764491587168,-19.19389919,0.00012675,2]
[395159504,1764491587194,-178.80027896,0.00012676,2]
[395159505,1764491589781,-500.0,0.00012676,2]
[395159506,1764491591884,-254.9048155,0.00012676,2]
[395159507,1764491594917,-160.98795251,0.00012676,2]
[395159508,1764491597932,-288.79778732,0.00012676,2]
[395159509,1764491607208,-287.47606149,0.00012676,2]
[395159510,1764491611161,-348.44471626,0.00012676,2]
[395159511,1764491613364,-500.0,0.00012676,2]
[395159512,1764491615815,-260.88026284,0.00012676,2]
[395159513,1764491617368,-334.30826152,0.00012676,2]
[395159514,1764491620963,-198.98171055,0.00012676,2]
[395159515,1764491621976,-450.19598352,0.00012676,2]
[395159516,1764491624706,-357.82898019,0.00012676,2]
[395159517,1764491629359,7028.19581428,0.00012576,2]
[395159518,1764491630857,-158.21882185,0.00012676,2]
[395159520,1764491641480,300.0,0.00012675,2]
[395159522,1764491646561,-2671.81418572,0.00012676,2]
[395159523,1764491646783,-10000.01,0.00012676,2]
[395159524,1764491646940,-10000.01,0.00012676,2]
[395159525,1764491647015,-10000.01,0.00012676,2]
[395159526,1764491647131,-10000.01,0.00012676,2]
[395159527,1764491652962,-10000.01,0.00012676,2]
[395159603,1764491746173,-4190.104049,0.00012513,2]
[395159604,1764491746223,-1619.801902,0.00012513,2]
[395159605,1764491746337,-1200.0,0.00012575,2]
[395159606,1764491746365,-300.0,0.00012575,2]
[395159607,1764491747573,-7000.01,0.00012576,2]
[395159608,1764491747614,-436.14903482,0.00012576,2]
[395159609,1764491747642,-500.0,0.00012576,2]
[395159610,1764491747774,-8127.71193036,0.00012576,2]
[395159611,1764491747795,-10000.01,0.00012576,2]
[395159612,1764491752425,-10000.01,0.00012576,2]
[395159613,1764491758960,-4728.36273036,0.00012576,2]
[395159614,1764491758983,-543.28453928,0.00012576,2]
[395159617,1764491764873,-300.0,0.00012575,2]
[395159618,1764491764902,-348.4447,0.00012576,2]
[395159619,1764491764931,-150.0,0.00012675,2]
[395159620,1764491764961,-470.09945234,0.00012675,2]
[395159621,1764491764991,-987.88238181,0.00012676,2]
[395159622,1764491765020,-1248.56965651,0.00012676,2]
[395159623,1764491765048,-200.0,0.00012676,2]
[395159624,1764491765082,-152.1713653,0.00012676,2]
[395159625,1764491765253,-2285.67488808,0.00012676,2]
[395159626,1764491765273,-10000.01,0.00012676,2]
[395159667,1764491790850,162.95,0.00011084,2]
[395159704,1764491879314,-178.32855963,0.00012576,2]
[395159705,1764491879348,-9643.35288074,0.00012576,2]
[395159706,1764491886455,-10000.01,0.00012576,2]
[395159707,1764491905853,-10000.01,0.00012576,2]
[395159708,1764491906060,-3756.00631926,0.00012576,2]
[395159709,1764491906092,-250.0,0.00012626,2]
[395159710,1764491906123,-500.0,0.00012675,2]
[395159711,1764491906153,-487.99736148,0.00012675,2]
[395159712,1764491906211,-12.00263852,0.00012675,2]
[395159713,1764491906253,-500.0,0.00012675,2]
[395159714,1764491906284,-500.0,0.00012675,2]
[395159715,1764491906314,-500.0,0.00012675,2]
[395159716,1764491906344,-500.0,0.00012675,2]
[395159717,1764491906373,-500.0,0.00012675,2]
[395159718,1764491906402,-500.0,0.00012675,2]
[395159719,1764491906432,-500.0,0.00012675,2]
[395159720,1764491906460,-500.0,0.00012675,2]
[395159721,1764491906488,-500.0,0.00012675,2]
[395159722,1764491906517,-500.0,0.00012675,2]
[395159723,1764491906716,-0.01,0.00012675,2]
[395159724,1764491909483,-2500.0,0.00012576,2]
[395159725,1764491909515,-499.99,0.00012675,2]
[395159726,1764491909546,-500.0,0.00012675,2]
[395159727,1764491909576,-297.98108857,0.00012675,2]
[395159728,1764491909606,-500.0,0.00012675,2]
[395159729,1764491909641,-500.0,0.00012675,2]
[395159730,1764491909747,-404.06782286,0.00012675,2]
[395159731,1764491912475,-95.93217714,0.00012675,2]
[395159732,1764491912503,-500.0,0.00012675,2]
[395159733,1764491912532,-500.0,0.00012675,2]
[395159734,1764491912562,-500.0,0.00012675,2]
[395159735,1764491912590,-500.0,0.00012675,2]
[395159736,1764491912623,-500.0,0.00012675,2]
[395159737,1764491912653,-500.0,0.00012675,2]
[395159738,1764491912684,-500.0,0.00012675,2]
[395159739,1764491913058,-500.0,0.00012675,2]
[395159740,1764491913090,-500.0,0.00012675,2]
[395159741,1764491913121,-308.14564572,0.00012675,2]
[395159742,1764491913229,-191.85435428,0.00012675,2]
[395159743,1764491913261,-500.0,0.00012675,2]
[395159744,1764491913293,-500.0,0.00012675,2]
[395159745,1764491913323,-500.0,0.00012675,2]
[395159746,1764491913355,-500.0,0.00012675,2]
[395159747,1764491913387,-500.0,0.00012675,2]
[395159748,1764491913418,-500.0,0.00012675,2]
[395159749,1764491913448,-500.0,0.00012675,2]
[395159750,1764491913478,-500.0,0.00012675,2]
[395159751,1764491913504,-671.39824189,0.00012676,2]